[Event "*** SCC Grand Prix: Titled Tuesday Blitz"]
[Site "Chess.com"]
[Date "2020.10.13"]
[Round "6"]
[White "elcandado"]
[Black "Chessdude1987"]
[Result "0-1"]
[WhiteElo "2559"]
[BlackElo "2292"]
[TimeControl "180+1"]
[EndTime "11:07:00 PDT"]
[Termination "Chessdude1987 won by resignation"]

1. d4 {[%clk 0:03:00.9]} 1... Nf6 {[%clk 0:02:59.1]} 2. Bf4 {[%clk 0:03:01.2]}
2... d5 {[%clk 0:02:56.2]} 3. e3 {[%clk 0:03:01]} 3... c5 {[%clk 0:02:53.9]} 4.
c3 {[%clk 0:03:00.2]} 4... Qb6 {[%clk 0:02:53.2]} 5. Qb3 {[%clk 0:02:59.4]} 5...
c4 {[%clk 0:02:49.5]} 6. Qc2 {[%clk 0:02:59.2]} 6... g6 {[%clk 0:02:38.4]} 7. b3
{[%clk 0:02:57.7]} 7... Bf5 {[%clk 0:02:37.8]} 8. Qb2 {[%clk 0:02:58.2]} 8...
Nbd7 {[%clk 0:02:31.7]} 9. Nd2 {[%clk 0:02:57.2]} 9... Bg7 {[%clk 0:02:28.6]}
10. h3 {[%clk 0:02:56]} 10... h5 {[%clk 0:02:17.8]} 11. Ngf3 {[%clk 0:02:53]}
11... Ne4 {[%clk 0:02:01.4]} 12. Nxe4 {[%clk 0:02:36.6]} 12... Bxe4 {[%clk
0:01:59]} 13. Be2 {[%clk 0:02:35.3]} 13... f6 {[%clk 0:01:41.4]} 14. Qa3 {[%clk
0:02:24.9]} 14... cxb3 {[%clk 0:01:32.8]} 15. axb3 {[%clk 0:02:25.8]} 15... g5
{[%clk 0:01:29.7]} 16. Bg3 {[%clk 0:02:24.7]} 16... Kf7 {[%clk 0:01:22.2]} 17.
c4 {[%clk 0:02:17.5]} 17... g4 {[%clk 0:01:07.1]} 18. Nh4 {[%clk 0:02:08.5]}
18... e6 {[%clk 0:01:02.7]} 19. c5 {[%clk 0:02:03.5]} 19... Qd8 {[%clk
0:00:58.7]} 20. f3 {[%clk 0:01:53.4]} 20... gxf3 {[%clk 0:00:43.6]} 21. Nxf3
{[%clk 0:01:43.6]} 21... Bh6 {[%clk 0:00:38.4]} 22. b4 {[%clk 0:01:40.3]} 22...
Rg8 {[%clk 0:00:34.8]} 23. Kf2 {[%clk 0:01:36.8]} 23... Qf8 {[%clk 0:00:31.3]}
24. Rhg1 {[%clk 0:01:16.4]} 24... Qg7 {[%clk 0:00:31]} 25. Bd6 {[%clk
0:01:15.9]} 25... e5 {[%clk 0:00:25.1]} 26. dxe5 {[%clk 0:01:09.8]} 26... Qg3+
{[%clk 0:00:24.3]} 27. Kf1 {[%clk 0:01:09.4]} 27... fxe5 {[%clk 0:00:22.1]} 28.
Qc3 {[%clk 0:00:57.2]} 28... Raf8 {[%clk 0:00:19.7]} 29. Bxe5 {[%clk 0:00:38]}
29... Nxe5 {[%clk 0:00:17.2]} 30. Qxe5 {[%clk 0:00:30.9]} 30... Qxe5 {[%clk
0:00:17]} 31. Nxe5+ {[%clk 0:00:30.6]} 31... Ke6+ {[%clk 0:00:17.4]} 32. Nf3
{[%clk 0:00:30]} 32... Bxe3 {[%clk 0:00:17.5]} 33. Rh1 {[%clk 0:00:30.5]} 33...
a6 {[%clk 0:00:16.3]} 34. Ra3 {[%clk 0:00:29.3]} 34... d4 {[%clk 0:00:16]} 35.
Bc4+ {[%clk 0:00:26.8]} 35... Bd5 {[%clk 0:00:15.7]} 36. Bxd5+ {[%clk
0:00:26.2]} 36... Kxd5 {[%clk 0:00:16]} 37. h4 {[%clk 0:00:24.2]} 37... Rg3
{[%clk 0:00:16]} 38. Rh3 {[%clk 0:00:24.3]} 38... Rxh3 {[%clk 0:00:15.9]} 39.
gxh3 {[%clk 0:00:25.2]} 39... Rxf3+ {[%clk 0:00:16.1]} 40. Ke2 {[%clk
0:00:26.1]} 40... Rxh3 {[%clk 0:00:15.4]} 41. Ra1 {[%clk 0:00:25.9]} 41... Rxh4
{[%clk 0:00:14.6]} 42. Rf1 {[%clk 0:00:25.9]} 42... Rh2+ {[%clk 0:00:14.3]} 0-1

[Event "*** SCC Grand Prix: Titled Tuesday Blitz"]
[Site "Chess.com"]
[Date "2020.10.13"]
[Round "6"]
[White "TorFredrikKaasen"]
[Black "Indianlad"]
[Result "0-1"]
[WhiteElo "2718"]
[BlackElo "2914"]
[TimeControl "180+1"]
[EndTime "11:07:04 PDT"]
[Termination "Indianlad won on time"]

1. d4 {[%clk 0:03:00.9]} 1... Nf6 {[%clk 0:02:57.6]} 2. c4 {[%clk 0:03:01.5]}
2... e6 {[%clk 0:02:57.6]} 3. Nf3 {[%clk 0:03:02.1]} 3... d5 {[%clk 0:02:56.8]}
4. g3 {[%clk 0:03:02.6]} 4... Bb4+ {[%clk 0:02:56.7]} 5. Nc3 {[%clk 0:03:02.4]}
5... O-O {[%clk 0:02:55.5]} 6. Bg2 {[%clk 0:03:02.2]} 6... dxc4 {[%clk 0:02:56]}
7. O-O {[%clk 0:03:02.5]} 7... Nc6 {[%clk 0:02:55.9]} 8. Qa4 {[%clk 0:03:03.1]}
8... Bd7 {[%clk 0:02:47.6]} 9. Bg5 {[%clk 0:03:00]} 9... h6 {[%clk 0:02:34.4]}
10. Bxf6 {[%clk 0:02:58.6]} 10... Qxf6 {[%clk 0:02:35.3]} 11. Ne5 {[%clk
0:02:57.6]} 11... Nxe5 {[%clk 0:02:25.6]} 12. Qxb4 {[%clk 0:02:48.8]} 12... Nc6
{[%clk 0:02:19.3]} 13. Qxb7 {[%clk 0:02:48.2]} 13... Nxd4 {[%clk 0:02:15.1]} 14.
Qxc7 {[%clk 0:02:38.1]} 14... Rad8 {[%clk 0:02:12.5]} 15. e3 {[%clk 0:02:35.5]}
15... Nf3+ {[%clk 0:02:11.2]} 16. Kh1 {[%clk 0:02:18]} 16... Nd2 {[%clk
0:02:11.3]} 17. Rfd1 {[%clk 0:02:17.6]} 17... Qxf2 {[%clk 0:02:10.7]} 18. Qf4
{[%clk 0:02:17.9]} 18... Qxf4 {[%clk 0:02:07.3]} 19. gxf4 {[%clk 0:02:07.1]}
19... Bc8 {[%clk 0:02:07.7]} 20. Nb5 {[%clk 0:01:19.6]} 20... a6 {[%clk
0:02:05.8]} 21. Nd4 {[%clk 0:01:18.8]} 21... c3 {[%clk 0:02:04.7]} 22. b3 {[%clk
0:01:10]} 22... g5 {[%clk 0:01:54.8]} 23. fxg5 {[%clk 0:00:50.1]} 23... hxg5
{[%clk 0:01:55.3]} 24. Rac1 {[%clk 0:00:49.9]} 24... e5 {[%clk 0:01:46.8]} 25.
Nc6 {[%clk 0:00:50.2]} 25... Bg4 {[%clk 0:01:47.2]} 26. Re1 {[%clk 0:00:37.5]}
26... Rde8 {[%clk 0:01:31]} 27. Rxc3 {[%clk 0:00:36]} 27... e4 {[%clk
0:01:31.7]} 28. Rc5 {[%clk 0:00:28.7]} 28... f6 {[%clk 0:01:30.7]} 29. Nd4
{[%clk 0:00:27.2]} 29... Kg7 {[%clk 0:01:28.7]} 30. Rc7+ {[%clk 0:00:20.2]}
30... Kg6 {[%clk 0:01:29]} 31. h3 {[%clk 0:00:17.6]} 31... Rh8 {[%clk
0:01:28.7]} 32. Kh2 {[%clk 0:00:16.7]} 32... Nf3+ {[%clk 0:01:29]} 33. Nxf3
{[%clk 0:00:16.1]} 33... exf3 {[%clk 0:01:29.1]} 34. Bf1 {[%clk 0:00:16.6]}
34... f2 {[%clk 0:01:29.2]} 35. Rec1 {[%clk 0:00:15.8]} 35... Rxe3 {[%clk
0:01:29.4]} 36. R7c3 {[%clk 0:00:15.1]} 36... Re1 {[%clk 0:00:51.3]} 37. Kg3
{[%clk 0:00:14.8]} 37... Bxh3 {[%clk 0:00:51.6]} 38. Kxf2 {[%clk 0:00:11.1]}
38... Rxf1+ {[%clk 0:00:50.6]} 39. Rxf1 {[%clk 0:00:09.7]} 39... Bxf1 {[%clk
0:00:51.5]} 40. Kxf1 {[%clk 0:00:10.4]} 40... Rh1+ {[%clk 0:00:52.2]} 41. Kg2
{[%clk 0:00:10.3]} 41... Ra1 {[%clk 0:00:52]} 42. a4 {[%clk 0:00:09.4]} 42...
Rb1 {[%clk 0:00:52.5]} 43. Kf3 {[%clk 0:00:07.2]} 43... a5 {[%clk 0:00:53]} 44.
Kg3 {[%clk 0:00:05.5]} 44... f5 {[%clk 0:00:52.9]} 45. Kg2 {[%clk 0:00:05.3]}
45... f4 {[%clk 0:00:53]} 46. Rc5 {[%clk 0:00:02.6]} 46... Rb2+ {[%clk
0:00:50.7]} 0-1

[Event "*** SCC Grand Prix: Titled Tuesday Blitz"]
[Site "Chess.com"]
[Date "2020.10.13"]
[Round "6"]
[White "eljanov"]
[Black "frederiksvane"]
[Result "1-0"]
[WhiteElo "2862"]
[BlackElo "2686"]
[TimeControl "180+1"]
[EndTime "11:07:05 PDT"]
[Termination "eljanov won by resignation"]

1. Nf3 {[%clk 0:02:59]} 1... Nf6 {[%clk 0:03:00]} 2. c4 {[%clk 0:02:58.5]} 2...
e6 {[%clk 0:02:58.8]} 3. g3 {[%clk 0:02:57.8]} 3... b6 {[%clk 0:02:52.9]} 4. Bg2
{[%clk 0:02:57.1]} 4... Bb7 {[%clk 0:02:53.5]} 5. d4 {[%clk 0:02:56.6]} 5... Be7
{[%clk 0:02:54]} 6. O-O {[%clk 0:02:56.3]} 6... O-O {[%clk 0:02:54.4]} 7. Re1
{[%clk 0:02:55.3]} 7... d6 {[%clk 0:02:42.4]} 8. d5 {[%clk 0:02:38]} 8... e5
{[%clk 0:02:31.8]} 9. Nc3 {[%clk 0:02:36.8]} 9... Nbd7 {[%clk 0:02:30.3]} 10. e4
{[%clk 0:02:35]} 10... a5 {[%clk 0:02:29.3]} 11. Rb1 {[%clk 0:02:21.7]} 11...
Nc5 {[%clk 0:02:20.4]} 12. b3 {[%clk 0:02:15.7]} 12... c6 {[%clk 0:02:20.2]} 13.
a3 {[%clk 0:01:47.5]} 13... cxd5 {[%clk 0:02:19.7]} 14. cxd5 {[%clk 0:01:47.5]}
14... Qd7 {[%clk 0:02:00.1]} 15. Bf1 {[%clk 0:01:43.6]} 15... Ba6 {[%clk
0:01:59.1]} 16. b4 {[%clk 0:01:37.4]} 16... axb4 {[%clk 0:01:49.8]} 17. axb4
{[%clk 0:01:37.5]} 17... Bxf1 {[%clk 0:01:29.1]} 18. bxc5 {[%clk 0:01:37.1]}
18... Bc4 {[%clk 0:01:26.5]} 19. c6 {[%clk 0:01:34.1]} 19... Qc7 {[%clk
0:01:25.9]} 20. Nb5 {[%clk 0:01:17.5]} 20... Bxb5 {[%clk 0:01:25.5]} 21. Rxb5
{[%clk 0:01:17.4]} 21... Ra1 {[%clk 0:01:16]} 22. Qc2 {[%clk 0:01:15.1]} 22...
Rfa8 {[%clk 0:01:13.7]} 23. Be3 {[%clk 0:01:14.9]} 23... Rxe1+ {[%clk 0:01:13]}
24. Nxe1 {[%clk 0:01:15.1]} 24... Ra1 {[%clk 0:01:09.8]} 25. Rb1 {[%clk
0:01:14.9]} 25... Rxb1 {[%clk 0:01:01.7]} 26. Qxb1 {[%clk 0:01:14.6]} 26... Bd8
{[%clk 0:01:02.4]} 27. f3 {[%clk 0:01:09.4]} 27... Qa7 {[%clk 0:00:51.9]} 28.
Nc2 {[%clk 0:00:57.4]} 28... Bc7 {[%clk 0:00:50.1]} 29. Qa1 {[%clk 0:00:57.1]}
29... Qb8 {[%clk 0:00:21.3]} 30. Qa6 {[%clk 0:00:54.6]} 30... Ne8 {[%clk
0:00:21.2]} 31. Na3 {[%clk 0:00:53.8]} 31... Kf8 {[%clk 0:00:19.8]} 32. Nb5
{[%clk 0:00:54]} 32... Ke7 {[%clk 0:00:20.3]} 33. Nxc7 {[%clk 0:00:47.6]} 33...
Nxc7 {[%clk 0:00:21.2]} 34. Qxb6 {[%clk 0:00:44.7]} 34... Qxb6 {[%clk
0:00:12.2]} 35. Bxb6 {[%clk 0:00:44.3]} 35... Nb5 {[%clk 0:00:10.4]} 36. Kf2
{[%clk 0:00:43.6]} 36... Na3 {[%clk 0:00:10.8]} 37. Ke2 {[%clk 0:00:42.2]} 37...
Nc4 {[%clk 0:00:11.2]} 38. Bf2 {[%clk 0:00:40.7]} 38... Kd8 {[%clk 0:00:09.6]}
39. Kd3 {[%clk 0:00:39.1]} 39... Nb2+ {[%clk 0:00:09.3]} 40. Kc2 {[%clk
0:00:39.2]} 40... Nc4 {[%clk 0:00:09.7]} 41. Kc3 {[%clk 0:00:39.4]} 41... Na3
{[%clk 0:00:09.9]} 42. Kb3 {[%clk 0:00:35.9]} 42... Nb5 {[%clk 0:00:06.7]} 43.
Kb4 {[%clk 0:00:35.8]} 43... Nc7 {[%clk 0:00:03.3]} 44. Bb6 {[%clk 0:00:35.7]}
44... Kc8 {[%clk 0:00:04.2]} 45. Bxc7 {[%clk 0:00:35.6]} 45... Kxc7 {[%clk
0:00:05.1]} 1-0

[Event "*** SCC Grand Prix: Titled Tuesday Blitz"]
[Site "Chess.com"]
[Date "2020.10.13"]
[Round "6"]
[White "albi1999"]
[Black "crescentmoon2411"]
[Result "0-1"]
[WhiteElo "2616"]
[BlackElo "2807"]
[TimeControl "180+1"]
[EndTime "11:07:08 PDT"]
[Termination "crescentmoon2411 won on time"]

1. d4 {[%clk 0:03:00.9]} 1... Nf6 {[%clk 0:02:59.7]} 2. c4 {[%clk 0:02:55.1]}
2... c5 {[%clk 0:02:59.4]} 3. d5 {[%clk 0:02:47.9]} 3... e6 {[%clk 0:02:59.5]}
4. Nc3 {[%clk 0:02:46.9]} 4... exd5 {[%clk 0:02:59.5]} 5. cxd5 {[%clk
0:02:43.6]} 5... d6 {[%clk 0:02:59.5]} 6. e4 {[%clk 0:02:43]} 6... g6 {[%clk
0:02:58.9]} 7. h3 {[%clk 0:02:42.4]} 7... Bg7 {[%clk 0:02:58.9]} 8. Nf3 {[%clk
0:02:42.7]} 8... O-O {[%clk 0:02:59]} 9. Bd3 {[%clk 0:02:43.2]} 9... a6 {[%clk
0:02:46.2]} 10. a4 {[%clk 0:02:41.8]} 10... Re8 {[%clk 0:02:35.1]} 11. O-O
{[%clk 0:02:41.1]} 11... c4 {[%clk 0:02:17.5]} 12. Bc2 {[%clk 0:02:37.1]} 12...
Nbd7 {[%clk 0:02:16.8]} 13. Bf4 {[%clk 0:02:30.1]} 13... Nc5 {[%clk 0:02:13.3]}
14. Re1 {[%clk 0:02:29.5]} 14... Rb8 {[%clk 0:01:45.8]} 15. Bh2 {[%clk
0:02:17.7]} 15... b5 {[%clk 0:01:27]} 16. axb5 {[%clk 0:02:15.8]} 16... axb5
{[%clk 0:01:27.9]} 17. e5 {[%clk 0:01:58.1]} 17... dxe5 {[%clk 0:01:22.8]} 18.
Nxe5 {[%clk 0:01:51.1]} 18... Bb7 {[%clk 0:01:07.3]} 19. Nc6 {[%clk 0:01:42.2]}
19... Bxc6 {[%clk 0:01:00.3]} 20. dxc6 {[%clk 0:01:37.5]} 20... Qxd1 {[%clk
0:00:58.2]} 21. Rexd1 {[%clk 0:01:22.9]} 21... Rbc8 {[%clk 0:00:55.1]} 22. Nxb5
{[%clk 0:00:41.2]} 22... Rxc6 {[%clk 0:00:54.1]} 23. Nd6 {[%clk 0:00:41.7]}
23... Re2 {[%clk 0:00:41.9]} 24. Ra8+ {[%clk 0:00:41.3]} 24... Bf8 {[%clk
0:00:41.7]} 25. Bb1 {[%clk 0:00:33.7]} 25... Nd3 {[%clk 0:00:34.2]} 26. Nxc4
{[%clk 0:00:25.7]} 26... Nxf2 {[%clk 0:00:30.7]} 27. Rc1 {[%clk 0:00:21.3]}
27... N2e4 {[%clk 0:00:26.5]} 28. b3 {[%clk 0:00:15.6]} 28... Kg7 {[%clk
0:00:23]} 29. Bxe4 {[%clk 0:00:09.8]} 29... Nxe4 {[%clk 0:00:23.9]} 30. Kh1
{[%clk 0:00:06.4]} 30... Nf2+ {[%clk 0:00:22]} 31. Kg1 {[%clk 0:00:06.8]} 31...
Bc5 {[%clk 0:00:21.2]} 32. Kf1 {[%clk 0:00:07.3]} 32... Ree6 {[%clk 0:00:18]}
33. b4 {[%clk 0:00:07.7]} 33... Bd4 {[%clk 0:00:16.9]} 34. b5 {[%clk 0:00:07.3]}
34... Rc5 {[%clk 0:00:16]} 35. b6 {[%clk 0:00:07.4]} 35... Nd3 {[%clk
0:00:15.3]} 36. Rb1 {[%clk 0:00:06.3]} 36... Rf5+ {[%clk 0:00:15.6]} 0-1

[Event "*** SCC Grand Prix: Titled Tuesday Blitz"]
[Site "Chess.com"]
[Date "2020.10.13"]
[Round "6"]
[White "Rodalquilar"]
[Black "SilviusTiberius"]
[Result "1-0"]
[WhiteElo "2763"]
[BlackElo "2590"]
[TimeControl "180+1"]
[EndTime "11:07:08 PDT"]
[Termination "Rodalquilar won on time"]

1. d4 {[%clk 0:03:00.9]} 1... Nf6 {[%clk 0:02:59.7]} 2. Bf4 {[%clk 0:03:01.1]}
2... g6 {[%clk 0:02:58.8]} 3. e3 {[%clk 0:03:01.3]} 3... Bg7 {[%clk 0:02:58.7]}
4. Nf3 {[%clk 0:03:01.7]} 4... d6 {[%clk 0:02:57.7]} 5. Be2 {[%clk 0:03:01.5]}
5... Nh5 {[%clk 0:02:49.4]} 6. Bg5 {[%clk 0:03:01.5]} 6... h6 {[%clk 0:02:48.4]}
7. Bh4 {[%clk 0:03:01.9]} 7... c5 {[%clk 0:02:47.7]} 8. c3 {[%clk 0:03:00.7]}
8... g5 {[%clk 0:02:39.3]} 9. Nfd2 {[%clk 0:03:00.2]} 9... cxd4 {[%clk
0:02:26.9]} 10. cxd4 {[%clk 0:02:59.6]} 10... Nf4 {[%clk 0:02:22.5]} 11. Bg3
{[%clk 0:02:41.3]} 11... Nxg2+ {[%clk 0:01:55.8]} 12. Kf1 {[%clk 0:02:41.5]}
12... Nh4 {[%clk 0:01:54.5]} 13. Bxh4 {[%clk 0:02:37.6]} 13... gxh4 {[%clk
0:01:53.4]} 14. Bg4 {[%clk 0:02:37.9]} 14... Nc6 {[%clk 0:01:45.1]} 15. Nc3
{[%clk 0:02:36.2]} 15... h5 {[%clk 0:01:36.5]} 16. Bxh5 {[%clk 0:02:21.8]} 16...
Bh3+ {[%clk 0:01:32.8]} 17. Ke1 {[%clk 0:02:22.2]} 17... e5 {[%clk 0:01:22.1]}
18. d5 {[%clk 0:01:53.8]} 18... Ne7 {[%clk 0:01:22]} 19. Bxf7+ {[%clk
0:01:53.7]} 19... Kxf7 {[%clk 0:01:17.8]} 20. Qf3+ {[%clk 0:01:54]} 20... Bf5
{[%clk 0:01:18.1]} 21. e4 {[%clk 0:01:54.6]} 21... Qb6 {[%clk 0:01:05.5]} 22.
exf5 {[%clk 0:01:00.2]} 22... Qxb2 {[%clk 0:01:01.3]} 23. Rb1 {[%clk 0:00:59.4]}
23... Qc2 {[%clk 0:00:54.2]} 24. f6 {[%clk 0:00:42.8]} 24... Bxf6 {[%clk
0:00:42.8]} 25. Nce4 {[%clk 0:00:40.6]} 25... Rh6 {[%clk 0:00:36.8]} 26. Rxb7
{[%clk 0:00:38.6]} 26... Rd8 {[%clk 0:00:18.1]} 27. Ke2 {[%clk 0:00:29.4]} 27...
Qxa2 {[%clk 0:00:15.8]} 28. Rc1 {[%clk 0:00:18.3]} 28... Qa6+ {[%clk 0:00:15.2]}
29. Nc4 {[%clk 0:00:15.3]} 29... Kf8 {[%clk 0:00:05.4]} 30. Nxf6 {[%clk
0:00:11.8]} 30... Qxb7 {[%clk 0:00:05.2]} 31. Ng4+ {[%clk 0:00:08.8]} 31... Kg7
{[%clk 0:00:03.9]} 32. Nxh6 {[%clk 0:00:09]} 32... Kxh6 {[%clk 0:00:02.2]} 33.
Qf6+ {[%clk 0:00:09.3]} 1-0

[Event "*** SCC Grand Prix: Titled Tuesday Blitz"]
[Site "Chess.com"]
[Date "2020.10.13"]
[Round "6"]
[White "Sankalp_Gupta2003"]
[Black "bazar-wokzal"]
[Result "1-0"]
[WhiteElo "2735"]
[BlackElo "2511"]
[TimeControl "180+1"]
[EndTime "11:07:09 PDT"]
[Termination "Sankalp_Gupta2003 won by resignation"]

1. e4 {[%clk 0:03:00.9]} 1... Nc6 {[%clk 0:02:59.7]} 2. Nf3 {[%clk 0:03:01.2]}
2... d5 {[%clk 0:02:59.6]} 3. exd5 {[%clk 0:03:00.6]} 3... Qxd5 {[%clk
0:02:59.4]} 4. Be2 {[%clk 0:03:01.5]} 4... Bg4 {[%clk 0:02:58]} 5. h3 {[%clk
0:03:01.6]} 5... Bxf3 {[%clk 0:02:56.7]} 6. Bxf3 {[%clk 0:03:02.5]} 6... Qe5+
{[%clk 0:02:52]} 7. Qe2 {[%clk 0:03:01.6]} 7... Qxe2+ {[%clk 0:02:50.3]} 8. Bxe2
{[%clk 0:03:02.5]} 8... O-O-O {[%clk 0:02:48.9]} 9. d3 {[%clk 0:02:58.7]} 9...
Nf6 {[%clk 0:02:46.4]} 10. Nc3 {[%clk 0:02:58.3]} 10... e5 {[%clk 0:02:43.6]}
11. Bd2 {[%clk 0:02:55.1]} 11... Nd4 {[%clk 0:02:41.1]} 12. O-O-O {[%clk
0:02:54.9]} 12... Nxe2+ {[%clk 0:02:34.9]} 13. Nxe2 {[%clk 0:02:55.8]} 13... Bc5
{[%clk 0:02:35]} 14. Be3 {[%clk 0:02:52.8]} 14... Bb6 {[%clk 0:02:27.4]} 15.
Bxb6 {[%clk 0:02:51.6]} 15... axb6 {[%clk 0:02:27.5]} 16. Ng3 {[%clk 0:02:50.8]}
16... Nd5 {[%clk 0:02:24.3]} 17. Rde1 {[%clk 0:02:45.9]} 17... Rhe8 {[%clk
0:02:18.8]} 18. Nf5 {[%clk 0:02:44.7]} 18... g6 {[%clk 0:02:17.2]} 19. Ne3
{[%clk 0:02:39.3]} 19... f5 {[%clk 0:02:09.6]} 20. Nc4 {[%clk 0:02:32.9]} 20...
e4 {[%clk 0:02:02.9]} 21. dxe4 {[%clk 0:02:33.8]} 21... fxe4 {[%clk 0:02:01.6]}
22. g3 {[%clk 0:02:32.6]} 22... b5 {[%clk 0:01:54]} 23. Ne3 {[%clk 0:02:29.3]}
23... Nf6 {[%clk 0:01:48.7]} 24. Re2 {[%clk 0:02:24.7]} 24... Rd6 {[%clk
0:01:47.3]} 25. Rhe1 {[%clk 0:02:23.9]} 25... h5 {[%clk 0:01:36.8]} 26. c3
{[%clk 0:02:20.2]} 26... Red8 {[%clk 0:01:30.7]} 27. h4 {[%clk 0:02:17.3]} 27...
c5 {[%clk 0:01:20.2]} 28. Ng2 {[%clk 0:02:11]} 28... Ng4 {[%clk 0:01:06.9]} 29.
Nf4 {[%clk 0:02:03.9]} 29... b4 {[%clk 0:01:01]} 30. cxb4 {[%clk 0:02:02.5]}
30... cxb4 {[%clk 0:01:00.9]} 31. Kc2 {[%clk 0:02:03.4]} 31... Ra6 {[%clk
0:00:54.1]} 32. Kb3 {[%clk 0:02:03]} 32... Kb8 {[%clk 0:00:51]} 33. Rc1 {[%clk
0:01:47.9]} 33... Rd4 {[%clk 0:00:44.8]} 34. Rc4 {[%clk 0:01:29.4]} 34... Rxc4
{[%clk 0:00:43.1]} 35. Kxc4 {[%clk 0:01:30.3]} 35... Rxa2 {[%clk 0:00:43.2]} 36.
Nxg6 {[%clk 0:01:30.7]} 36... Ra1 {[%clk 0:00:38.8]} 37. Nf4 {[%clk 0:01:24.2]}
37... Nf6 {[%clk 0:00:32.1]} 38. Kxb4 {[%clk 0:01:23.1]} 38... Rc1 {[%clk
0:00:29.2]} 39. Kb3 {[%clk 0:01:17]} 39... Rf1 {[%clk 0:00:22.2]} 40. Kc3 {[%clk
0:01:13.2]} 40... Kc7 {[%clk 0:00:22.5]} 41. Kd4 {[%clk 0:01:12.6]} 41... Kd6
{[%clk 0:00:23.1]} 42. Rd2 {[%clk 0:01:09.5]} 42... Rb1 {[%clk 0:00:18.1]} 43.
Ne2 {[%clk 0:00:59.2]} 43... Rf1 {[%clk 0:00:13]} 44. Nc3 {[%clk 0:00:59.1]}
44... Re1 {[%clk 0:00:11.5]} 45. b4 {[%clk 0:00:55.2]} 45... Ke6 {[%clk
0:00:10.9]} 46. b5 {[%clk 0:00:52.8]} 46... Kf5 {[%clk 0:00:10.7]} 47. Nd5
{[%clk 0:00:42.7]} 47... Kg4 {[%clk 0:00:10]} 48. Nxf6+ {[%clk 0:00:42.6]} 1-0

[Event "*** SCC Grand Prix: Titled Tuesday Blitz"]
[Site "Chess.com"]
[Date "2020.10.13"]
[Round "6"]
[White "Maksimus1998"]
[Black "ama18"]
[Result "1-0"]
[WhiteElo "2617"]
[BlackElo "2468"]
[TimeControl "180+1"]
[EndTime "11:07:09 PDT"]
[Termination "Maksimus1998 won by resignation"]

1. e4 {[%clk 0:03:00.9]} 1... c5 {[%clk 0:02:56.1]} 2. Nf3 {[%clk 0:03:00.2]}
2... d6 {[%clk 0:02:56.4]} 3. d4 {[%clk 0:02:58.9]} 3... cxd4 {[%clk 0:02:57.3]}
4. Nxd4 {[%clk 0:02:59.4]} 4... Nf6 {[%clk 0:02:58]} 5. Nc3 {[%clk 0:02:59]}
5... a6 {[%clk 0:02:58.7]} 6. Bc4 {[%clk 0:02:57.4]} 6... e6 {[%clk 0:02:57.6]}
7. Be3 {[%clk 0:02:56.5]} 7... b5 {[%clk 0:02:57.5]} 8. Bb3 {[%clk 0:02:55.9]}
8... Bb7 {[%clk 0:02:56.7]} 9. f3 {[%clk 0:02:54.6]} 9... Nbd7 {[%clk
0:02:56.9]} 10. Qd2 {[%clk 0:02:53.1]} 10... Nc5 {[%clk 0:02:57]} 11. g4 {[%clk
0:02:52.6]} 11... Be7 {[%clk 0:02:52.3]} 12. O-O-O {[%clk 0:02:51]} 12... O-O
{[%clk 0:02:50.7]} 13. h4 {[%clk 0:02:50.6]} 13... b4 {[%clk 0:02:50.2]} 14.
Nce2 {[%clk 0:02:48.4]} 14... a5 {[%clk 0:02:49.6]} 15. h5 {[%clk 0:02:40]}
15... d5 {[%clk 0:02:41.3]} 16. g5 {[%clk 0:02:32.5]} 16... Nfd7 {[%clk
0:02:28.3]} 17. exd5 {[%clk 0:02:29.1]} 17... exd5 {[%clk 0:02:29.2]} 18. Nf5
{[%clk 0:02:25.7]} 18... Nxb3+ {[%clk 0:02:15.4]} 19. cxb3 {[%clk 0:02:19.3]}
19... a4 {[%clk 0:02:13.4]} 20. bxa4 {[%clk 0:02:17.8]} 20... Rxa4 {[%clk
0:02:14.3]} 21. Kb1 {[%clk 0:02:17.2]} 21... b3 {[%clk 0:02:13.6]} 22. axb3
{[%clk 0:02:14.6]} 22... Ra6 {[%clk 0:02:11]} 23. Qd4 {[%clk 0:02:10.7]} 23...
f6 {[%clk 0:02:08.1]} 24. Rhg1 {[%clk 0:02:01.1]} 24... Bc5 {[%clk 0:01:49.9]}
25. Qd2 {[%clk 0:01:59.7]} 25... Bxe3 {[%clk 0:01:48.6]} 26. Qxe3 {[%clk
0:01:54.2]} 26... Re8 {[%clk 0:01:42.5]} 27. Qd2 {[%clk 0:01:52.4]} 27... Nc5
{[%clk 0:01:30.3]} 28. gxf6 {[%clk 0:01:41.5]} 28... Qxf6 {[%clk 0:01:05.7]} 29.
Nxg7 {[%clk 0:01:34.6]} 29... Kf8 {[%clk 0:00:50.1]} 30. Qd4 {[%clk 0:01:14.7]}
30... Ra1+ {[%clk 0:00:36.3]} 31. Kxa1 {[%clk 0:01:06.7]} 31... Nxb3+ {[%clk
0:00:35.9]} 32. Kb1 {[%clk 0:01:07.6]} 32... Nxd4 {[%clk 0:00:35.8]} 33. Nxd4
{[%clk 0:01:08.5]} 33... Re3 {[%clk 0:00:26.3]} 34. Ngf5 {[%clk 0:00:58.3]}
34... Re5 {[%clk 0:00:23.1]} 35. Ng7 {[%clk 0:00:29]} 35... Ba6 {[%clk
0:00:20.1]} 36. f4 {[%clk 0:00:28.5]} 36... Re4 {[%clk 0:00:17.9]} 37. f5 {[%clk
0:00:23.7]} 37... Bc8 {[%clk 0:00:15.2]} 38. Nge6+ {[%clk 0:00:23.1]} 38... Bxe6
{[%clk 0:00:13.8]} 39. Nxe6+ {[%clk 0:00:23.5]} 39... Rxe6 {[%clk 0:00:13.9]}
40. fxe6 {[%clk 0:00:23.5]} 40... Qxe6 {[%clk 0:00:14.8]} 41. Rdf1+ {[%clk
0:00:23.1]} 41... Ke7 {[%clk 0:00:14.4]} 42. Re1 {[%clk 0:00:23.7]} 42... Kd6
{[%clk 0:00:12.3]} 43. Rxe6+ {[%clk 0:00:23.1]} 43... Kxe6 {[%clk 0:00:13.2]}
44. Rg7 {[%clk 0:00:23.4]} 1-0